bitfinex-derivatives/quotes_SOLF0:USTF0_20250609
["timestamp","ask_amount","ask_price","bid_price","bid_amount"]
[1749481733298,11.75884552,154.81,154.8,7.21347187]
[1749481733501,11.75884552,154.81,154.8,7.21347869]
[1749481733894,11.75884552,154.81,154.79,6.50300143]
[1749481734203,11.77121049,154.8,154.79,0.04580143]
[1749481734397,11.77121049,154.8,154.79,7.25643147]
[1749481734597,11.77121049,154.8,154.79,7.25702661]
[1749481734999,11.77121049,154.8,154.79,7.25778214]
[1749481735496,6.4586,154.76,154.72,377.6604197]
[1749481735700,6.4586,154.76,154.73,32.48]
[1749481735899,6.4586,154.76,154.73,38.9395]
[1749481736204,6.4586,154.76,154.73,32.48]
[1749481736495,6.50288458,154.76,154.73,32.52541218]
[1749481737198,6.50288458,154.76,154.74,6.4591]
[1749481737800,6.50288458,154.76,154.73,38.98491218]
[1749481738291,6.4589,154.75,154.73,38.98491218]
[1749481738496,6.4589,154.75,154.73,32.52541218]
[1749481738696,0.04428458,154.76,154.73,32.52541218]
[1749481738892,6.50288458,154.76,154.73,32.52541218]
[1749481739097,6.50288458,154.76,154.73,38.98491218]
[1749481740803,6.50288458,154.76,154.74,6.4593]
[1749481741296,6.50288458,154.76,154.73,38.98501218]
[1749481741796,6.4589,154.75,154.73,38.98501218]
[1749481742902,6.50298458,154.76,154.73,38.98501218]
[1749481743400,6.4591,154.75,154.73,32.52541218]
[1749481743598,0.04428458,154.76,154.73,32.52541218]
[1749481743998,6.4593,154.74,154.73,32.52541218]
[1749481744699,6.4593,154.74,154.73,0.04541218]
[1749481744901,6.4601,154.72,154.7,6.4608]
[1749481745100,5.29670938,154.74,154.68,32.48]
[1749481745402,6.4591,154.75,154.69,5.8804197]
[1749481746101,0.0448579,154.74,154.73,6.4597]
[1749481747505,0.0448579,154.74,154.73,12.3401197]
[1749481747709,5.30270517,154.8,154.77,6.4578]
[1749481747909,5.30270517,154.79,154.77,6.4578]
[1749481748095,6.4571,154.8,154.77,6.4578]
[1749481748405,5.30256816,154.79,154.77,6.4578]
[1749481748607,6.50001727,154.8,154.77,6.4578]
[1749481748800,11.76017114,154.79,154.77,6.4578]
[1749481748999,6.4573,154.79,154.77,6.4578]
[1749481749205,0.04291727,154.8,154.77,6.4578]
[1749481749403,11.76283146,154.79,154.77,6.4578]
[1749481749607,6.4572,154.79,154.76,6.5060095]
[1749481751005,6.4573,154.79,154.76,0.0477095]
[1749481751596,6.4573,154.79,154.76,6.5060095]
[1749481751906,6.4573,154.79,154.76,0.0477095]
[1749481752407,6.4573,154.79,154.76,6.5060095]
[1749481754708,0.04291727,154.8,154.76,0.0477095]
[1749481754906,0.04291727,154.8,154.76,32.5277095]
[1749481755709,0.04291727,154.8,154.78,6.4574]
[1749481756215,0.04291727,154.8,154.76,32.5277095]
[1749481756417,6.49971727,154.8,154.76,32.5277095]
[1749481756908,0.04291727,154.8,154.78,6.4576]
[1749481757316,0.04291727,154.8,154.76,32.5277095]
[1749481757609,6.49981727,154.8,154.77,6.4578]
[1749481758008,6.49981727,154.8,154.78,6.4575]
[1749481758208,0.04291727,154.8,154.78,6.4575]
[1749481759010,6.49981727,154.8,154.78,6.4575]
[1749481759812,0.04291727,154.8,154.78,6.4575]
[1749481760313,0.04291727,154.8,154.76,32.5277095]
[1749481760314,6.49991727,154.8,154.77,6.4578]
[1749481761613,0.04291727,154.8,154.78,6.4576]
[1749481763013,6.49971727,154.8,154.77,6.4579]
[1749481763213,6.49971727,154.8,154.76,32.5277095]
[1749481763214,0.04291727,154.8,154.76,32.5277095]
[1749481763416,5.31991328,154.79,154.76,32.5277095]
[1749481763713,5.31991328,154.78,154.76,32.5277095]
[1749481763908,6.4578,154.78,154.76,32.5277095]
[1749481765312,6.4578,154.78,154.76,38.9861095]
[1749481767013,6.4574,154.79,154.76,38.9861095]
[1749481767214,5.31976218,154.78,154.76,38.9861095]
[1749481767415,6.4574,154.79,154.76,38.9861095]
[1749481767614,5.31959127,154.78,154.76,38.9861095]
[1749481767915,6.4577,154.78,154.76,38.9861095]
[1749481768414,6.4581,154.77,154.76,32.5277095]
[1749481768613,11.1990848,154.77,154.73,32.46]
[1749481768815,5.3186651,154.76,154.71,32.46]
[1749481769005,5.3186651,154.75,154.71,32.46]
[1749481769207,19.8804197,154.79,154.71,38.3404197]
[1749481769410,5.32255856,154.78,154.74,6.459]
[1749481769614,11.78075856,154.77,154.74,0.0485755]
[1749481769814,5.32255856,154.76,154.74,0.0485755]
[1749481770123,6.4582,154.77,154.74,0.0485755]
[1749481770318,11.7832867,154.76,154.74,0.0485755]
[1749481770512,5.3247867,154.75,154.74,0.0485755]
[1749481770819,0.04375218,154.78,154.74,6.5078755]
[1749481771020,5.32465676,154.77,154.74,6.5078755]
[1749481771220,5.32465676,154.76,154.74,6.5078755]
[1749481771411,6.4582,154.77,154.74,6.5078755]
[1749481771620,5.32760501,154.76,154.74,6.5078755]
[1749481771812,11.78652138,154.75,154.74,0.0485755]
[1749481772013,11.20804108,154.75,154.71,32.46]
[1749481772216,5.32762138,154.74,154.71,32.46]
[1749481772418,6.4599,154.73,154.71,32.46]
[1749481773118,6.4599,154.73,154.71,38.9205]
[1749481773816,6.50788206,154.74,154.71,38.9205]
[1749481774117,0.04838206,154.74,154.71,32.46]
[1749481774718,0.04838206,154.74,154.73,6.4597]
[1749481775715,0.04838206,154.74,154.72,6.46]
[1749481776115,0.04838206,154.74,154.73,5.8804197]
[1749481777414,0.04838206,154.74,154.73,12.3401197]
[1749481779222,8.206e-05,154.74,154.73,12.3401197]
[1749481779419,5.31775247,154.79,154.78,6.4576]
[1749481780317,5.31775247,154.81,154.79,6.457]
[1749481780510,147.01150811,154.82,154.79,6.457]
[1749481780511,147.0547996,154.82,154.79,6.457]
[1749481780715,5.31682247,154.81,154.79,6.457]
[1749481780916,147.0547996,154.82,154.79,6.457]
[1749481781120,5.31682426,154.81,154.79,6.457]
[1749481781421,147.0547996,154.82,154.79,6.457]
[1749481781725,5.31671704,154.81,154.78,0.04323028]
[1749481781923,147.0547996,154.82,154.78,0.04323028]
[1749481782123,5.31630235,154.81,154.78,0.04323028]
[1749481782317,147.0547996,154.82,154.78,0.04323028]
[1749481782524,5.3162625,154.81,154.78,6.50073028]
[1749481782722,6.4564,154.81,154.78,6.50073028]
[1749481783526,147.0547996,154.82,154.79,6.4569]
[1749481783725,6.49939149,154.82,154.79,6.4569]
[1749481785523,5.32544645,154.81,154.79,6.4569]
[1749481785724,11.78173072,154.81,154.79,6.4569]
[1749481786219,6.4565,154.81,154.78,6.50073028]
[1749481786820,6.4565,154.81,154.79,6.4572]
[1749481787021,11.7815511,154.81,154.79,6.4572]
[1749481787216,6.4565,154.81,154.79,6.4572]
[1749481787423,11.78154931,154.81,154.79,6.4572]
[1749481787627,6.4565,154.81,154.79,6.4572]
[1749481787924,11.78078829,154.81,154.78,6.50073028]
[1749481788225,6.4569,154.8,154.78,6.50073028]
[1749481789421,6.4566,154.81,154.79,6.4572]
[1749481789626,0.04329149,154.82,154.78,0.04323028]
[1749481789824,5.32323755,154.81,154.78,0.04323028]
[1749481790021,6.4567,154.81,154.78,6.50063028]
[1749481791432,0.04329149,154.82,154.8,6.4568]
[1749481791730,5.32250773,154.81,154.8,6.4568]
[1749481791933,5.32250773,154.81,154.79,6.4571]
[1749481792126,6.49929149,154.82,154.79,6.4571]
[1749481792322,5.32218993,154.81,154.79,6.4571]
[1749481792528,6.49929149,154.82,154.79,6.4571]
[1749481795132,5.32368924,154.81,154.79,6.4571]
[1749481795627,5.32368924,154.81,154.8,6.4568]
[1749481795831,6.49929149,154.82,154.78,0.04323028]
[1749481796025,0.04329149,154.82,154.78,0.04323028]
[1749481796230,0.04329149,154.82,154.8,6.4566]
[1749481796532,6.49939149,154.82,154.78,0.04323028]
[1749481796830,0.04329149,154.82,154.8,6.4566]
[1749481797335,0.04329149,154.82,154.79,6.4571]
[1749481797529,5.32333191,154.81,154.78,0.04323028]
[1749481797730,5.32413642,154.81,154.78,0.04323028]
[1749481798533,5.32413642,154.81,154.79,6.4572]
[1749481798934,5.32112293,154.81,154.79,6.4572]
[1749481799136,5.32112293,154.81,154.78,0.04323028]
[1749481799434,0.04329149,154.82,154.8,6.4568]
[1749481802040,5.32137697,154.81,154.78,0.04323028]
[1749481802237,5.32137697,154.8,154.78,0.04323028]
[1749481802539,5.32151464,154.81,154.78,0.04323028]
[1749481803238,0.04329149,154.82,154.78,0.04323028]
[1749481803640,0.04329149,154.82,154.81,6.4564]
[1749481803936,5.36367787,154.82,154.81,6.4564]
[1749481804635,5.36367787,154.82,154.8,6.4566]
[1749481804939,0.04329149,154.82,154.8,6.4566]
[1749481805632,0.04329149,154.82,154.81,6.4564]
[1749481805837,5.36030498,154.82,154.81,6.4564]
[1749481806038,5.36030498,154.82,154.79,32.44]
[1749481806234,0.04329149,154.82,154.8,6.4565]
[1749481806442,0.04329149,154.82,154.79,32.44]
[1749481806642,5.92371119,154.82,154.78,0.04323028]
[1749481806837,0.04329149,154.82,154.78,0.04323028]
[1749481807239,0.04329149,154.82,154.8,6.4568]
[1749481807946,0.04329149,154.82,154.81,6.4564]
[1749481808147,5.36113722,154.82,154.81,6.4564]
[1749481811350,5.36113722,154.82,154.8,6.4566]
[1749481811542,5.32147998,154.81,154.8,6.4566]
[1749481811845,0.04329149,154.82,154.8,6.4566]
[1749481813650,5.32202726,154.81,154.8,6.4566]
[1749481813850,5.32202726,154.81,154.79,32.44]
[1749481814152,0.04329149,154.82,154.79,32.44]
[1749481814444,5.32272544,154.81,154.79,38.897]
[1749481814746,0.04329149,154.82,154.79,38.897]
[1749481814947,5.32287817,154.81,154.8,6.4568]
[1749481815247,5.32300166,154.81,154.8,6.4568]
[1749481815639,5.32300166,154.81,154.79,38.897]
[1749481815840,0.04329149,154.82,154.79,38.897]
[1749481816043,5.32414005,154.81,154.79,38.897]
[1749481816243,0.04329149,154.82,154.79,38.897]
[1749481816440,5.32428781,154.81,154.79,38.897]
[1749481816643,0.04329149,154.82,154.79,38.897]
[1749481816846,5.32499266,154.81,154.79,38.897]
[1749481817039,0.04329149,154.82,154.79,38.897]
[1749481817240,5.32516549,154.81,154.79,38.897]
[1749481817444,6.4566,154.81,154.79,38.897]
[1749481819353,5.33057229,154.8,154.79,38.897]
[1749481820154,5.33057229,154.8,154.79,6.457]
[1749481823451,0.04329149,154.82,154.78,38.30105711]
[1749481823452,0.04329149,154.82,154.81,6.4564]
[1749481823658,5.37989979,154.82,154.81,12.27039367]
[1749481824155,0.04329149,154.82,154.81,12.27039367]
[1749481824952,3.02,154.88,154.81,12.27039367]
[1749481824953,9.04591769,154.88,154.86,6.4543]
[1749481825151,5.33955855,154.87,154.86,6.4543]
[1749481826154,5.33955855,154.87,154.85,6.49757958]
[1749481826355,3.06896352,154.88,154.85,6.49757958]
[1749481826660,5.33057624,154.87,154.85,6.49757958]
[1749481826859,9.52246352,154.88,154.85,6.49757958]
[1749481827061,5.33056398,154.87,154.85,6.49757958]
[1749481827262,9.52246352,154.88,154.85,6.49757958]
[1749481827561,5.3276469,154.87,154.85,6.49757958]
[1749481827762,3.06896352,154.88,154.85,6.49757958]
[1749481827964,5.32754751,154.87,154.85,6.49757958]
[1749481828162,3.06896352,154.88,154.85,6.49757958]
[1749481828467,5.32538752,154.87,154.85,6.49757958]
[1749481828671,3.06896352,154.88,154.85,6.49757958]
[1749481828963,5.32528568,154.87,154.85,6.49757958]
[1749481829169,3.06896352,154.88,154.85,6.49757958]
[1749481829356,3.06896352,154.88,154.86,6.4542]
[1749481832169,3.06896352,154.88,154.87,6.4539]
[1749481832370,3.06896352,154.88,154.85,0.04307958]
[1749481832563,0.04896352,154.88,154.85,0.04307958]
[1749481832763,5.31883403,154.87,154.85,0.04307958]
[1749481832964,5.31883403,154.86,154.85,0.04307958]
[1749481833471,11.77313403,154.86,154.85,0.04307958]
[1749481848574,11.34475172,154.86,154.79,32.4]
[1749481848776,5.81399367,154.83,154.79,6.457]
[1749481848979,11.77503403,154.82,154.79,6.457]
[1749481849284,5.81399367,154.83,154.79,6.457]
[1749481849473,5.33366687,154.82,154.79,6.50472214]
[1749481849670,5.33305655,154.82,154.8,6.4567]
[1749481849880,5.86177901,154.83,154.8,6.4567]
[1749481850079,5.33323195,154.82,154.8,6.4567]
[1749481850278,5.33304211,154.82,154.79,0.04772214]
[1749481851681,5.33304211,154.82,154.81,6.4564]
[1749481854086,5.33304211,154.82,154.79,0.04772214]
[1749481854385,0.04778534,154.83,154.79,0.04772214]
[1749481854576,5.32805901,154.82,154.79,0.04772214]
[1749481854780,5.31696743,154.82,154.79,0.04772214]
[1749481855181,5.31696743,154.82,154.81,6.4562]
[1749481855585,0.04778534,154.83,154.82,6.456]
[1749481855785,5.36452431,154.83,154.82,6.456]
[1749481856180,5.36452431,154.83,154.81,6.4562]
[1749481856382,5.31673897,154.82,154.81,6.4562]
[1749481857886,0.04778534,154.83,154.82,6.456]
[1749481858087,5.36468182,154.83,154.82,6.456]
[1749481859786,5.36468182,154.83,154.81,6.4562]
[1749481859987,0.04778534,154.83,154.79,0.04772214]
[1749481860287,5.3631927,154.83,154.82,6.456]
[1749481861385,0.04778534,154.83,154.82,6.456]
[1749481862483,5.3151131,154.86,154.85,6.4547]
[1749481862889,3.02,154.87,154.83,5.81399367]
[1749481863080,3.02,154.87,154.86,6.4543]
[1749481863391,0.04149619,154.88,154.86,32.38]
[1749481863586,6.02557603,154.94,154.87,5.81399367]
[1749481863892,5.31239654,154.93,154.87,5.81399367]
[1749481864089,5.31239654,154.92,154.91,6.4522]
[1749481864488,5.31239654,154.95,154.9,32.38]
[1749481864690,5.35848702,154.94,154.92,6.4515]
[1749481864893,5.31239654,154.93,154.91,0.04800122]
[1749481865391,0.04609048,154.94,154.91,0.04800122]
[1749481865589,5.36012537,154.94,154.91,0.04800122]
[1749481865785,11.12802856,154.93,154.91,0.04800122]
[1749481865996,5.31403489,154.92,154.85,32.38]
[1749481866193,6.4535,154.88,154.85,32.38]
[1749481866593,5.81399367,154.91,154.85,32.38]
[1749481866788,19.341,155.04,154.85,32.38]
[1749481866789,6.4531,154.89,154.85,38.8344]
[1749481866993,11.8735792,155.15,154.91,12.9043]
[1749481867289,5.80654486,155.08,154.97,5.80654486]
[1749481867488,5.80654486,155.08,155.02,6.4474]
[1749481867688,8.54365578,155.06,154.95,5.80654486]
[1749481867891,0.04865618,155.02,154.99,6.49545677]
[1749481868089,0.04865618,155.02,154.99,0.04685677]
[1749481868595,5.8050199,155.01,154.99,0.04685677]
[1749481868793,5.80523573,155.01,154.99,0.04685677]
[1749481868991,5.80520167,155.01,154.99,0.04685677]
[1749481869191,50.76010954,155.02,154.99,0.04685677]
[1749481869587,6.4481,155.01,154.99,0.04685677]
[1749481870595,12.25300256,155.01,154.99,0.04685677]
[1749481871096,6.4481,155.01,154.99,0.04685677]
[1749481871293,12.25300256,155.01,154.99,0.04685677]
[1749481871796,38.50755618,155.02,154.99,0.04685677]
[1749481872197,44.95525618,155.02,154.99,0.04685677]
[1749481872694,6.4481,155.01,154.99,0.04685677]
[1749481873293,4.40755618,155.02,154.99,0.04685677]
[1749481873496,0.04865618,155.02,154.99,0.04685677]
[1749481874495,6.49655618,155.02,154.99,0.04685677]
[1749481874797,0.04865618,155.02,154.99,0.04685677]
[1749481876998,0.04865618,155.02,154.99,39.93175933]
[1749481877202,7.00641092,155.06,155.01,6.4481]
[1749481877495,2.73711092,155.06,155.02,5.80490256]
[1749481877696,2.73711092,155.06,155.01,6.448]
[1749481877901,8.54201348,155.06,155.01,6.448]
[1749481878097,2.73711092,155.06,155.01,6.448]
[1749481878299,0.04774176,155.05,155.02,6.49301276]
[1749481878501,0.04774176,155.05,155.02,0.04561276]
[1749481878897,0.04774176,155.05,155.03,6.4468]
[1749481879303,0.04774176,155.05,155.02,0.04561276]
[1749481879504,0.04774176,155.05,155.04,6.4468]
[1749481881801,0.04774176,155.05,155.03,6.4471]
[1749481883005,0.04774176,155.05,155.02,6.49311276]
[1749481884006,0.04774176,155.05,155.03,6.447]
[1749481884398,0.04774176,155.05,155.02,0.04561276]
[1749481886710,6.49424176,155.05,155.02,6.49301276]
[1749481888597,0.04774176,155.05,155.03,6.4472]
[1749481889206,0.04774176,155.05,155.02,0.04561276]
[1749481889711,0.04774176,155.05,155.03,6.4469]
[1749481890116,0.04774176,155.05,155.03,6.4472]
[1749481892315,0.04774176,155.05,155.04,6.4468]
[1749481892717,0.04774176,155.05,155.02,0.04561276]
[1749481893516,0.04774176,155.05,155.03,6.4469]
[1749481894414,6.58925809,155.04,155.03,6.4469]
[1749481894615,0.04774176,155.05,155.03,6.4469]
[1749481895416,2.41177384,155.04,155.03,6.4469]
[1749481895622,0.04774176,155.05,155.03,6.4469]
[1749481895817,2.41181849,155.04,155.03,6.4469]
[1749481896224,0.04774176,155.05,155.04,6.4468]
[1749481896422,2.45947094,155.05,155.04,6.4468]
[1749481896626,6.60167153,155.05,155.04,6.4468]
[1749481896813,4.18992002,155.05,155.04,6.4468]
[1749481897014,4.18990757,155.05,155.04,6.4468]
[1749481897219,2.45939197,155.05,155.04,6.4468]
[1749481897519,0.04774176,155.05,155.04,6.4468]
[1749481897826,2.45893779,155.05,155.04,6.4468]
[1749481898021,2.45893759,155.05,155.03,6.447]
[1749481898222,6.49414176,155.05,155.02,0.04561276]
[1749481898722,2.41132731,155.04,155.02,0.04561276]
[1749481898921,2.41132731,155.03,155.02,6.49331276]
[1749481899120,6.49414176,155.05,155.02,0.04561276]
[1749481899322,2.41129383,155.04,155.02,6.49291276]
[1749481899522,2.41129291,155.03,155.02,6.49291276]
[1749481899725,6.49414176,155.05,155.02,6.49291276]
[1749481900026,2.41127059,155.04,155.03,6.4472]
[1749481900424,0.04774176,155.05,155.03,6.4472]
[1749481900725,2.41124552,155.04,155.03,6.4472]
[1749481900923,2.41124668,155.04,155.03,6.4472]
[1749481901129,2.41125334,155.04,155.03,6.4472]
[1749481901625,0.04774176,155.05,155.03,6.4472]
[1749481901823,2.41120869,155.04,155.03,6.4472]
[1749481902031,2.41124778,155.04,155.03,6.4472]
[1749481902329,2.41115752,155.04,155.03,6.4472]
[1749481902532,0.04774176,155.05,155.02,0.04561276]
[1749481902724,6.54955725,155.04,155.02,0.04561276]
[1749481902927,2.41159385,155.03,155.02,0.04561276]
[1749481903124,0.04774176,155.05,155.02,0.04561276]
[1749481903424,10.95576028,155.04,155.02,0.04561276]
[1749481903731,2.41178201,155.03,155.02,0.04561276]
[1749481903929,6.55014395,155.03,155.02,0.04561276]
[1749481904124,12.99734982,155.03,155.02,0.04561276]
[1749481904335,6.55011646,155.03,155.02,0.04561276]
[1749481904630,6.54998831,155.03,155.02,0.04561276]
[1749481904828,2.41163818,155.03,155.02,0.04561276]
[1749481905124,4.4057,155.04,155.02,0.04561276]
[1749481905125,6.49444176,155.05,155.03,6.4472]
[1749481905324,2.41155174,155.04,155.03,6.4472]
[1749481905522,2.41149592,155.04,155.03,6.4472]
[1749481905928,6.54531038,155.04,155.03,6.4472]
[1749481906129,0.04774176,155.05,155.04,6.4468]
[1749481906325,4.18153995,155.05,155.04,6.4468]
[1749481906628,2.45646913,155.05,155.04,6.4468]
[1749481907031,0.04774176,155.05,155.04,6.4468]
[1749481907231,6.59019789,155.05,155.04,6.4468]
[1749481907433,6.57906171,155.05,155.04,6.4468]
[1749481907730,2.45640607,155.05,155.04,6.4468]
[1749481908032,6.57862545,155.05,155.04,6.4468]
[1749481908327,4.17039772,155.05,155.04,6.4468]
[1749481908525,6.57862669,155.05,155.04,6.4468]
[1749481908832,2.45597073,155.05,155.04,6.4468]
[1749481909226,6.57850466,155.05,155.04,6.4468]
[1749481909532,0.04774176,155.05,155.04,6.4468]
[1749481912626,0.04774176,155.05,155.03,5.80490256]
[1749481912627,5.80490256,155.17,155.03,5.80490256]
[1749481912831,4.3747,155.17,155.1,5.80490256]
[1749481913030,6.54805789,155.16,155.09,6.4445]
[1749481913335,5.80490256,155.13,155.06,34.06]
[1749481913523,6.4444,155.1,155.08,0.04677318]
[1749481913727,4.15426349,155.09,155.08,0.04677318]
[1749481913924,4.15426354,155.09,155.08,0.04677318]
[1749481914125,2.42964033,155.09,155.08,0.04677318]
[1749481914325,6.58374402,155.09,155.08,0.04677318]
[1749481914527,6.58370148,155.09,155.08,0.04677318]
[1749481914730,6.4447,155.09,155.08,0.04677318]
[1749481914932,8.87440931,155.09,155.08,0.04677318]
[1749481915432,6.4456,155.07,155.04,6.4465]
[1749481916329,6.49411995,155.07,155.05,6.4464]
[1749481916534,0.04851995,155.07,155.05,6.4464]
[1749481916730,2.42997171,155.06,155.05,6.4464]
[1749481917632,6.58231197,155.06,155.05,6.4464]
[1749481917833,2.44044944,155.06,155.05,6.4464]
[1749481918034,6.61516292,155.06,155.05,6.4464]
[1749481919133,4.17913849,155.06,155.05,6.4464]
[1749481919338,2.44120492,155.06,155.05,6.4464]
[1749481919535,6.62035674,155.06,155.05,6.4464]
[1749481919730,0.04851995,155.07,155.05,6.4464]
[1749481919930,2.43404839,155.06,155.05,6.4464]
[1749481920532,2.43404072,155.06,155.05,6.4464]
[1749481920734,2.43403649,155.06,155.05,6.4464]
[1749481920929,2.43403513,155.06,155.05,6.4464]
[1749481921141,2.42355545,155.06,155.05,6.4464]
[1749481921334,2.42346591,155.06,155.05,6.4464]
[1749481922140,2.42346591,155.06,155.04,0.04267371]
[1749481922335,5.85342251,155.07,155.04,0.04267371]
[1749481922634,6.57052078,155.06,155.04,0.04267371]
[1749481922837,2.42316887,155.05,155.04,0.04267371]
[1749481923437,12.37811526,155.05,155.01,0.26788]
[1749481923637,6.5732127,155.04,155.01,0.26788]
[1749481923942,6.4472,155.04,155.01,6.71568]
[1749481924137,2.42492124,155.03,155.01,6.71568]
[1749481924440,2.42495484,155.02,155.01,0.26788]
[1749481924639,2.42493891,155.02,155.01,0.26788]
[1749481924841,2.42493891,155.02,155.01,6.71558]
[1749481925436,0.0436874,155.04,155.02,6.4476]
[1749481925638,2.41875254,155.03,155.01,0.26788]
[1749481925835,2.4180717,155.02,155.01,6.71578]
[1749481926438,2.4180717,155.02,155.01,0.26788]
[1749481927642,2.41713099,155.02,155.01,6.71558]
[1749481927933,6.4906874,155.04,155.01,6.71558]
[1749481928135,2.41711279,155.03,155.01,6.71558]
[1749481928341,2.41720286,155.02,155.01,6.71558]
[1749481929345,2.41749263,155.02,155.01,6.71558]
[1749481929547,6.4906874,155.04,155.02,6.4476]
[1749481929940,2.41756016,155.03,155.01,0.26788]
[1749481930145,2.41763964,155.02,155.01,0.26788]
[1749481930746,8.86533964,155.02,155.01,0.26788]
[1749481931345,6.4474,155.03,155.01,0.26788]
[1749481931549,2.41765247,155.02,155.01,0.26788]
[1749481931746,2.41765805,155.02,155.01,0.26788]
[1749481932450,8.86525805,155.02,155.01,0.26788]
[1749481932949,8.8644559,155.02,155.01,0.26788]
[1749481933249,8.86445032,155.02,155.01,0.26788]
[1749481933448,8.86444849,155.02,155.01,0.26788]
[1749481933648,6.4476,155.02,155.01,0.26788]
[1749481933849,8.86444312,155.02,155.0,0.04325942]
[1749481934052,2.41615937,155.01,155.0,0.04325942]
[1749481934347,2.41615937,155.01,155.0,6.49175942]
[1749481934738,2.41616473,155.01,155.0,6.49175942]
[1749481934938,5.17452151,155.03,155.0,6.49175942]
[1749481935142,0.0436874,155.04,155.0,6.49175942]
[1749481935339,7.59068624,155.03,155.0,6.49175942]
[1749481935648,2.41616473,155.02,155.0,6.49175942]
[1749481935850,2.41616473,155.01,155.0,6.49175942]
[1749481936043,2.40798374,155.01,155.0,6.49175942]
[1749481936953,0.0436874,155.04,155.0,6.49175942]
[1749481937153,7.58185162,155.03,155.0,6.49175942]
[1749481937452,2.40798936,155.02,155.01,6.4481]
[1749481937856,2.40763707,155.02,155.01,6.4481]
[1749481938257,6.4906874,155.04,155.01,6.4481]
[1749481938555,0.0436874,155.04,155.02,6.4477]
[1749481938859,2.40665144,155.03,155.02,6.4477]
[1749481939555,6.4907874,155.04,155.02,6.4477]
[1749481940252,2.40658761,155.03,155.02,6.4477]
[1749481940753,2.40920321,155.03,155.02,6.4477]
[1749481941055,6.4907874,155.04,155.0,0.04325942]
[1749481941056,0.0436874,155.04,155.03,6.4472]
[1749481941245,2.45263349,155.04,155.03,6.4472]
[1749481941451,0.0436874,155.04,155.03,6.4472]
[1749481941651,2.45266617,155.04,155.03,6.4472]
[1749481941852,2.45266802,155.04,155.03,6.4472]
[1749481942054,2.45270903,155.04,155.02,6.4476]
[1749481942254,2.40902163,155.03,155.02,6.4476]
[1749481942455,2.40906639,155.03,155.02,6.4476]
[1749481942651,0.0436874,155.04,155.03,6.4472]
[1749481942856,2.45253377,155.04,155.03,6.4472]
[1749481943057,2.45256733,155.04,155.03,6.4472]
[1749481943250,6.4906874,155.04,155.01,6.448]
[1749481943556,2.40894331,155.03,155.0,0.04325942]
[1749481943757,6.4906874,155.04,155.0,0.04325942]
[1749481943957,2.4089424,155.03,155.01,6.4481]
[1749481944154,0.0436874,155.04,155.01,39.48490256]
[1749481944865,0.0436874,155.04,155.03,6.4472]
[1749481962572,2.42395496,155.07,155.06,6.446]
[1749481962771,5.18526424,155.09,155.06,38.98490256]
[1749481962969,4.4461,155.1,155.06,38.98490256]
[1749481963169,2.42370551,155.09,155.06,38.98490256]
[1749481963371,4.4461,155.1,155.06,38.98490256]
[1749481963575,2.4238252,155.09,155.06,33.22623506]
[1749481963775,2.4238279,155.08,155.07,6.4456]
[1749481963977,2.42316433,155.08,155.06,33.22623506]
[1749481964180,5.18409579,155.09,155.07,6.4456]
[1749481964481,2.42327453,155.08,155.06,33.22623506]
[1749481964778,5.18409579,155.09,155.08,6.4452]
[1749481964972,7.60763553,155.09,155.08,6.4452]
[1749481965178,2.42329542,155.09,155.08,6.4452]
[1749481965381,2.42329384,155.09,155.08,6.4452]
[1749481965579,2.42329389,155.09,155.08,6.4452]
[1749481965879,0.04368169,155.1,155.09,6.4448]
[1749481966178,5.22775162,155.1,155.06,39.03113762]
[1749481966374,2.42586188,155.09,155.06,39.03113762]
[1749481966573,5.22775162,155.1,155.06,39.03113762]
[1749481966774,0.04368169,155.1,155.06,39.03113762]
[1749481967081,0.04368169,155.1,155.09,6.4448]
[1749481967377,0.04368169,155.1,155.06,33.22623506]
[1749481967980,2.42733977,155.09,155.08,6.4452]
[1749481968179,0.04368169,155.1,155.06,33.22623506]
[1749481968377,0.04368169,155.1,155.07,5.80490256]
[1749481968677,0.04368169,155.1,155.09,12.24970256]
[1749481969074,0.04368169,155.1,155.09,6.4448]
[1749481971971,8.169e-05,155.1,155.09,6.4448]
[1749481977579,2.2035,155.16,155.08,5.80490256]
[1749481977784,14.0,155.17,155.11,5.80490256]
[1749481977982,2.43858863,155.16,155.12,33.16]
[1749481978281,6.02702627,155.23,155.15,5.80490256]
[1749481978480,5.80490256,155.29,155.2,5.80490256]
[1749481978681,8.50417138,155.28,155.23,6.48131822]
[1749481978874,9.33499398,155.27,155.23,0.04261822]